[Event "Titled Tuesday Blitz July 20 2021"]
[White "Kilpatrick, Callum"]
[Black "Tanenbaum, Zachary"]
[WhiteFideId "414425"]
[BlackFideId "2060850"]
[WhiteElo "2465"]
[BlackElo "2743"]
[Result "0-1"]
[Round "02"]
[TimeControl "180+1"]
[Date "2021.07.21"]
[WhiteClock "0:00:38"]
[BlackClock "0:00:09"]

1. e4 {[%clk 0:03:00]}  e5 {[%clk 0:03:00]} 2. Nf3 {[%clk 0:03:01]}  Nc6 {[%clk 0:03:00]} 3. Bb5 {[%clk 0:03:00]}  a6 {[%clk 0:03:01]} 4. Ba4 {[%clk 0:03:01]}  d6 {[%clk 0:03:01]} 5. O-O {[%clk 0:03:00]}  Nf6 {[%clk 0:03:01]} 6. Re1 {[%clk 0:03:00]}  Be7 {[%clk 0:03:01]} 7. c3 {[%clk 0:03:00]}  O-O {[%clk 0:03:01]} 8. d4 {[%clk 0:03:01]}  b5 {[%clk 0:03:01]} 9. Bb3 {[%clk 0:02:59]}  Bb7 {[%clk 0:02:59]} 10. Nbd2 {[%clk 0:02:56]}  h6 {[%clk 0:02:39]} 11. h3 {[%clk 0:02:56]}  Re8 {[%clk 0:02:37]} 12. Nf1 {[%clk 0:02:55]}  Bf8 {[%clk 0:02:10]} 13. Ng3 {[%clk 0:02:54]}  Na5 {[%clk 0:01:53]} 14. Bc2 {[%clk 0:02:54]}  c5 {[%clk 0:01:52]} 15. d5 {[%clk 0:02:46]}  Nc4 {[%clk 0:01:51]} 16. a4 {[%clk 0:02:46]}  Nb6 {[%clk 0:01:31]} 17. a5 {[%clk 0:02:45]}  Nc4 {[%clk 0:01:30]} 18. b4 {[%clk 0:02:44]}  Rc8 {[%clk 0:01:22]} 19. Nf5 {[%clk 0:02:40]}  Qd7 {[%clk 0:01:05]} 20. g4 {[%clk 0:02:35]}  Nh7 {[%clk 0:00:53]} 21. Bd3 {[%clk 0:02:22]}  cxb4 {[%clk 0:00:52]} 22. cxb4 {[%clk 0:02:22]}  Rc7 {[%clk 0:00:49]} 23. Nh2 {[%clk 0:01:59]}  Rec8 {[%clk 0:00:44]} 24. Nf1 {[%clk 0:01:55]}  g6 {[%clk 0:00:39]} 25. Nxh6+ {[%clk 0:01:49]}  Bxh6 {[%clk 0:00:39]} 26. Bxh6 {[%clk 0:01:50]}  Nb2 {[%clk 0:00:39]} 27. Qd2 {[%clk 0:01:47]}  Nxd3 {[%clk 0:00:39]} 28. Qxd3 {[%clk 0:01:48]}  Rc3 {[%clk 0:00:39]} 29. Qd2 {[%clk 0:01:49]}  Rxh3 {[%clk 0:00:39]} 30. Ne3 {[%clk 0:01:45]}  Rxh6 {[%clk 0:00:38]} 31. Kg2 {[%clk 0:01:45]}  Ng5 {[%clk 0:00:36]} 32. Nf5 {[%clk 0:01:35]}  Rh2+ {[%clk 0:00:34]} 33. Kg3 {[%clk 0:01:23]}  Rh3+ {[%clk 0:00:27]} 34. Kg2 {[%clk 0:01:23]}  Nf3 {[%clk 0:00:28]} 35. Qe2 {[%clk 0:01:11]}  Nxe1+ {[%clk 0:00:27]} 36. Kxh3 {[%clk 0:01:10]}  Rc3+ {[%clk 0:00:20]} 37. Ne3 {[%clk 0:01:04]}  Nd3 {[%clk 0:00:17]} 38. Qd2 {[%clk 0:01:01]}  Nf4+ {[%clk 0:00:16]} 39. Kg3 {[%clk 0:01:02]}  Kg7 {[%clk 0:00:12]} 40. Rh1 {[%clk 0:00:58]}  Qc8 {[%clk 0:00:10]} 41. f3 {[%clk 0:00:52]}  Rc1 {[%clk 0:00:09]} 42. Rh4 {[%clk 0:00:41]}  Rg1+ {[%clk 0:00:08]} 43. Kh2 {[%clk 0:00:38]}  Qc1 {[%clk 0:00:08]} 44. Qf2 {[%clk 0:00:37]}  Rh1+ {[%clk 0:00:08]} 45. Kg3 {[%clk 0:00:37]}  Rxh4 {[%clk 0:00:09]} 46. Kxh4 {[%clk 0:00:38]}  Qh1+ {[%clk 0:00:09]} 47. Kg3 {[%clk 0:00:38]}  Qh3# {[%clk 0:00:09]} 0-1


[Site "https://www.chess.com"]

[Event "Titled Tuesday Blitz July 20 2021"]
[White "Kobalia, Mikhail"]
[Black "Najdin, Danil"]
[WhiteFideId "4119150"]
[BlackFideId "4172426"]
[WhiteElo "2569"]
[BlackElo "2193"]
[Result "1-0"]
[Round "02"]
[TimeControl "180+1"]
[Date "2021.07.20"]
[WhiteClock "0:01:34"]
[BlackClock "0:00:45"]

1. e4 {[%clk 0:02:54]}  e5 {[%clk 0:02:58]} 2. Nf3 {[%clk 0:02:54]}  Nc6 {[%clk 0:02:58]} 3. Bb5 {[%clk 0:02:53]}  a6 {[%clk 0:02:59]} 4. Ba4 {[%clk 0:02:53]}  Nf6 {[%clk 0:02:59]} 5. O-O {[%clk 0:02:53]}  b5 {[%clk 0:03:00]} 6. Bb3 {[%clk 0:02:53]}  Bc5 {[%clk 0:03:01]} 7. c3 {[%clk 0:02:53]}  d6 {[%clk 0:03:01]} 8. d4 {[%clk 0:02:54]}  Bb6 {[%clk 0:03:02]} 9. Be3 {[%clk 0:02:54]}  Bg4 {[%clk 0:02:48]} 10. Nbd2 {[%clk 0:02:48]}  exd4 {[%clk 0:02:46]} 11. cxd4 {[%clk 0:02:44]}  Nxd4 {[%clk 0:02:35]} 12. e5 {[%clk 0:02:36]}  dxe5 {[%clk 0:02:13]} 13. Bxf7+ {[%clk 0:02:32]}  Kf8 {[%clk 0:02:00]} 14. Bxd4 {[%clk 0:02:20]}  Bxd4 {[%clk 0:01:56]} 15. Bb3 {[%clk 0:02:19]}  e4 {[%clk 0:01:30]} 16. h3 {[%clk 0:01:54]}  Bxf3 {[%clk 0:01:27]} 17. gxf3 {[%clk 0:01:53]}  Qd7 {[%clk 0:01:09]} 18. Nxe4 {[%clk 0:01:49]}  Nxe4 {[%clk 0:01:09]} 19. fxe4 {[%clk 0:01:49]}  Re8 {[%clk 0:01:03]} 20. Qf3+ {[%clk 0:01:46]}  Bf6 {[%clk 0:01:03]} 21. Rad1 {[%clk 0:01:42]}  Qc6 {[%clk 0:00:53]} 22. Rfe1 {[%clk 0:01:38]}  g6 {[%clk 0:00:44]} 23. Bd5 {[%clk 0:01:35]}  Qb6 {[%clk 0:00:45]} 24. e5 {[%clk 0:01:34]} 1-0


[Site "https://www.chess.com"]

[Event "Titled Tuesday Blitz July 20 2021"]
[White "Krallis, Christos"]
[Black "Siva Mahadevan"]
[WhiteFideId "4298896"]
[BlackFideId "25043153"]
[WhiteElo "2193"]
[BlackElo "2203"]
[Result "0-1"]
[Round "02"]
[TimeControl "180+1"]
[Date "2021.07.20"]
[WhiteClock "0:00:02"]
[BlackClock "0:00:18"]

1. d4 {[%clk 0:03:00]}  Nf6 {[%clk 0:02:59]} 2. c4 {[%clk 0:03:00]}  e6 {[%clk 0:03:00]} 3. Nf3 {[%clk 0:03:00]}  d5 {[%clk 0:02:59]} 4. Nc3 {[%clk 0:03:00]}  c6 {[%clk 0:02:58]} 5. e3 {[%clk 0:02:58]}  Nbd7 {[%clk 0:02:58]} 6. Qc2 {[%clk 0:02:58]}  Bd6 {[%clk 0:02:56]} 7. Bd3 {[%clk 0:02:55]}  O-O {[%clk 0:02:56]} 8. e4 {[%clk 0:02:51]}  dxe4 {[%clk 0:02:50]} 9. Nxe4 {[%clk 0:02:50]}  Nxe4 {[%clk 0:02:51]} 10. Bxe4 {[%clk 0:02:51]}  f5 {[%clk 0:02:30]} 11. Bd3 {[%clk 0:02:51]}  c5 {[%clk 0:02:30]} 12. d5 {[%clk 0:02:13]}  exd5 {[%clk 0:02:28]} 13. cxd5 {[%clk 0:02:07]}  Re8+ {[%clk 0:02:07]} 14. Kf1 {[%clk 0:02:00]}  g6 {[%clk 0:02:03]} 15. Bg5 {[%clk 0:01:55]}  Qc7 {[%clk 0:01:51]} 16. h4 {[%clk 0:01:48]}  h5 {[%clk 0:01:35]} 17. g3 {[%clk 0:01:28]}  Nf8 {[%clk 0:01:34]} 18. Kg2 {[%clk 0:01:24]}  Bd7 {[%clk 0:01:33]} 19. Rae1 {[%clk 0:01:19]}  Nh7 {[%clk 0:01:32]} 20. Qc1 {[%clk 0:00:52]}  b5 {[%clk 0:01:26]} 21. b3 {[%clk 0:00:49]}  Qb7 {[%clk 0:01:25]} 22. Rd1 {[%clk 0:00:44]}  Rac8 {[%clk 0:01:10]} 23. Bf4 {[%clk 0:00:40]}  Bf8 {[%clk 0:01:05]} 24. Ne5 {[%clk 0:00:36]}  Rxe5 {[%clk 0:01:02]} 25. Bxe5 {[%clk 0:00:32]}  Qxd5+ {[%clk 0:01:02]} 26. f3 {[%clk 0:00:26]}  Qxe5 {[%clk 0:01:02]} 27. Rhe1 {[%clk 0:00:23]}  Qc7 {[%clk 0:00:45]} 28. a4 {[%clk 0:00:20]}  a6 {[%clk 0:00:43]} 29. axb5 {[%clk 0:00:18]}  axb5 {[%clk 0:00:44]} 30. Bb1 {[%clk 0:00:18]}  Bg7 {[%clk 0:00:41]} 31. Qd2 {[%clk 0:00:16]}  Bc6 {[%clk 0:00:36]} 32. Re6 {[%clk 0:00:13]}  Nf8 {[%clk 0:00:36]} 33. Rd6 {[%clk 0:00:12]}  Bd4 {[%clk 0:00:27]} 34. Qf4 {[%clk 0:00:08]}  Qe7 {[%clk 0:00:22]} 35. b4 {[%clk 0:00:08]}  Qe2+ {[%clk 0:00:21]} 36. Kh3 {[%clk 0:00:07]}  Bxf3 {[%clk 0:00:21]} 37. Ba2+ {[%clk 0:00:05]}  Kh7 {[%clk 0:00:18]} 38. Rg1 {[%clk 0:00:02]}  Bg4+ {[%clk 0:00:18]} 0-1


[Site "https://www.chess.com"]

[Event "Titled Tuesday Blitz July 20 2021"]
[White "Kretov, Evgenij"]
[Black "Meissner, Felix"]
[WhiteFideId "4167821"]
[BlackFideId "24671827"]
[WhiteElo "2400"]
[BlackElo "2390"]
[Result "1-0"]
[Round "02"]
[TimeControl "180+1"]
[Date "2021.07.21"]
[WhiteClock "0:00:20"]
[BlackClock "0:00:09"]

1. d4 {[%clk 0:03:00]}  g6 {[%clk 0:02:59]} 2. c4 {[%clk 0:03:01]}  Bg7 {[%clk 0:02:58]} 3. Nc3 {[%clk 0:03:01]}  d6 {[%clk 0:02:59]} 4. e4 {[%clk 0:03:01]}  Nc6 {[%clk 0:02:59]} 5. Be3 {[%clk 0:03:01]}  e5 {[%clk 0:02:59]} 6. d5 {[%clk 0:03:02]}  Nce7 {[%clk 0:02:58]} 7. Qd2 {[%clk 0:03:02]}  f5 {[%clk 0:02:58]} 8. f3 {[%clk 0:03:01]}  Nf6 {[%clk 0:02:58]} 9. h3 {[%clk 0:03:00]}  O-O {[%clk 0:02:55]} 10. Bd3 {[%clk 0:03:00]}  Nh5 {[%clk 0:02:54]} 11. Nge2 {[%clk 0:02:59]}  f4 {[%clk 0:02:53]} 12. Bf2 {[%clk 0:02:58]}  g5 {[%clk 0:02:53]} 13. O-O-O {[%clk 0:02:57]}  Ng6 {[%clk 0:02:53]} 14. c5 {[%clk 0:02:57]}  Nh4 {[%clk 0:02:51]} 15. Rhg1 {[%clk 0:02:57]}  a6 {[%clk 0:02:47]} 16. cxd6 {[%clk 0:02:56]}  cxd6 {[%clk 0:02:48]} 17. Na4 {[%clk 0:02:55]}  b5 {[%clk 0:02:40]} 18. Nb6 {[%clk 0:02:55]}  Rb8 {[%clk 0:02:40]} 19. Nxc8 {[%clk 0:02:50]}  Rxc8+ {[%clk 0:02:41]} 20. Kb1 {[%clk 0:02:50]}  Qd7 {[%clk 0:02:36]} 21. Qa5 {[%clk 0:02:49]}  Qb7 {[%clk 0:02:11]} 22. Rc1 {[%clk 0:02:47]}  Bf6 {[%clk 0:02:09]} 23. a4 {[%clk 0:02:43]}  bxa4 {[%clk 0:02:06]} 24. Bxa6 {[%clk 0:02:34]}  Rxc1+ {[%clk 0:02:03]} 25. Nxc1 {[%clk 0:02:28]}  Qa8 {[%clk 0:01:56]} 26. Qxa4 {[%clk 0:02:21]}  Rb8 {[%clk 0:01:52]} 27. Qc6 {[%clk 0:02:16]}  Ng3 {[%clk 0:01:47]} 28. Qxa8 {[%clk 0:02:14]}  Rxa8 {[%clk 0:01:47]} 29. Bb7 {[%clk 0:02:10]}  Rb8 {[%clk 0:01:47]} 30. Bc6 {[%clk 0:02:10]}  Bd8 {[%clk 0:01:47]} 31. Ba7 {[%clk 0:02:05]}  Bb6 {[%clk 0:01:22]} 32. Bxb8 {[%clk 0:02:05]}  Bxg1 {[%clk 0:01:22]} 33. Bxd6 {[%clk 0:02:05]}  Nxg2 {[%clk 0:01:18]} 34. Bxe5 {[%clk 0:01:54]}  Ne1 {[%clk 0:01:18]} 35. d6 {[%clk 0:01:49]}  Nxf3 {[%clk 0:01:18]} 36. d7 {[%clk 0:01:45]}  Bb6 {[%clk 0:01:18]} 37. Bf6 {[%clk 0:01:44]}  Nd2+ {[%clk 0:01:15]} 38. Kc2 {[%clk 0:01:44]}  f3 {[%clk 0:01:10]} 39. Nd3 {[%clk 0:01:32]}  Ndxe4 {[%clk 0:01:07]} 40. d8=Q+ {[%clk 0:01:31]}  Bxd8 {[%clk 0:01:05]} 41. Bxd8 {[%clk 0:01:31]}  f2 {[%clk 0:01:05]} 42. Nxf2 {[%clk 0:01:26]}  Nxf2 {[%clk 0:01:06]} 43. b4 {[%clk 0:01:22]}  Nf5 {[%clk 0:01:02]} 44. Kc3 {[%clk 0:01:07]}  Nd1+ {[%clk 0:00:55]} 45. Kc4 {[%clk 0:01:04]}  Nde3+ {[%clk 0:00:52]} 46. Kc5 {[%clk 0:01:04]}  g4 {[%clk 0:00:37]} 47. hxg4 {[%clk 0:01:01]}  Nxg4 {[%clk 0:00:38]} 48. b5 {[%clk 0:01:01]}  Ne5 {[%clk 0:00:31]} 49. b6 {[%clk 0:00:57]}  Nd3+ {[%clk 0:00:31]} 50. Kc4 {[%clk 0:00:52]}  Ne5+ {[%clk 0:00:22]} 51. Kd5 {[%clk 0:00:52]}  Nf7 {[%clk 0:00:17]} 52. b7 {[%clk 0:00:47]}  Nxd8 {[%clk 0:00:17]} 53. b8=Q {[%clk 0:00:47]}  Ne7+ {[%clk 0:00:17]} 54. Kd6 {[%clk 0:00:39]}  Nxc6 {[%clk 0:00:18]} 55. Qb5 {[%clk 0:00:38]}  Kg7 {[%clk 0:00:17]} 56. Qg5+ {[%clk 0:00:37]}  Kf7 {[%clk 0:00:18]} 57. Kd7 {[%clk 0:00:35]}  Kf8 {[%clk 0:00:14]} 58. Qh6+ {[%clk 0:00:35]}  Kf7 {[%clk 0:00:15]} 59. Qxh7+ {[%clk 0:00:35]}  Kf6 {[%clk 0:00:16]} 60. Qh5 {[%clk 0:00:34]}  Kg7 {[%clk 0:00:16]} 61. Qf5 {[%clk 0:00:33]}  Kh6 {[%clk 0:00:15]} 62. Qf4+ {[%clk 0:00:32]}  Kg6 {[%clk 0:00:15]} 63. Ke8 {[%clk 0:00:27]}  Kg7 {[%clk 0:00:14]} 64. Qg5+ {[%clk 0:00:25]}  Kh7 {[%clk 0:00:14]} 65. Qf6 {[%clk 0:00:24]}  Kg8 {[%clk 0:00:14]} 66. Qg6+ {[%clk 0:00:23]}  Kh8 {[%clk 0:00:13]} 67. Kf8 {[%clk 0:00:20]}  Ne7 {[%clk 0:00:09]} 1-0


[Site "https://www.chess.com"]

[Event "Titled Tuesday Blitz July 20 2021"]
[White "Kubatko, Ivan"]
[Black "Moroni, Luca Jr"]
[WhiteFideId "24111473"]
[BlackFideId "865834"]
[WhiteElo "2478"]
[BlackElo "2759"]
[Result "0-1"]
[Round "02"]
[TimeControl "180+1"]
[Date "2021.07.21"]
[WhiteClock "0:00:02"]
[BlackClock "0:00:08"]

1. e4 {[%clk 0:03:00]}  e5 {[%clk 0:02:59]} 2. Nf3 {[%clk 0:03:00]}  Nc6 {[%clk 0:02:59]} 3. Bb5 {[%clk 0:02:58]}  a6 {[%clk 0:02:59]} 4. Ba4 {[%clk 0:02:58]}  Nf6 {[%clk 0:02:59]} 5. d3 {[%clk 0:02:58]}  b5 {[%clk 0:02:59]} 6. Bb3 {[%clk 0:02:58]}  Bc5 {[%clk 0:03:00]} 7. c3 {[%clk 0:02:58]}  d6 {[%clk 0:03:01]} 8. h3 {[%clk 0:02:58]}  O-O {[%clk 0:02:58]} 9. O-O {[%clk 0:02:58]}  h6 {[%clk 0:02:58]} 10. Nbd2 {[%clk 0:02:58]}  Bb6 {[%clk 0:02:54]} 11. Re1 {[%clk 0:02:57]}  Ne7 {[%clk 0:02:50]} 12. d4 {[%clk 0:02:50]}  Ng6 {[%clk 0:02:49]} 13. Nf1 {[%clk 0:02:49]}  Bb7 {[%clk 0:02:29]} 14. Ng3 {[%clk 0:02:47]}  Re8 {[%clk 0:02:29]} 15. Bc2 {[%clk 0:02:02]}  c5 {[%clk 0:02:11]} 16. dxc5 {[%clk 0:01:31]}  dxc5 {[%clk 0:02:04]} 17. Be3 {[%clk 0:01:31]}  Qc7 {[%clk 0:02:04]} 18. Qc1 {[%clk 0:01:19]}  c4 {[%clk 0:01:53]} 19. Bxh6 {[%clk 0:00:57]}  gxh6 {[%clk 0:01:38]} 20. Qxh6 {[%clk 0:00:58]}  Bc5 {[%clk 0:01:22]} 21. Nf5 {[%clk 0:00:52]}  Bf8 {[%clk 0:01:20]} 22. Qg5 {[%clk 0:00:52]}  Nh7 {[%clk 0:01:14]} 23. Qg3 {[%clk 0:00:50]}  Rad8 {[%clk 0:01:03]} 24. h4 {[%clk 0:00:47]}  Kh8 {[%clk 0:01:03]} 25. Ng5 {[%clk 0:00:22]}  Rd2 {[%clk 0:00:52]} 26. Bd1 {[%clk 0:00:19]}  Nf4 {[%clk 0:00:43]} 27. Bg4 {[%clk 0:00:09]}  f6 {[%clk 0:00:29]} 28. Nf3 {[%clk 0:00:08]}  Rd3 {[%clk 0:00:27]} 29. Rad1 {[%clk 0:00:07]}  Red8 {[%clk 0:00:23]} 30. Rxd3 {[%clk 0:00:07]}  cxd3 {[%clk 0:00:24]} 31. Ne3 {[%clk 0:00:03]}  Qg7 {[%clk 0:00:22]} 32. Qh3 {[%clk 0:00:03]}  Bc5 {[%clk 0:00:21]} 33. Nf5 {[%clk 0:00:02]}  Qf8 {[%clk 0:00:19]} 34. h5 {[%clk 0:00:02]}  d2 {[%clk 0:00:19]} 35. Rd1 {[%clk 0:00:02]}  Bxe4 {[%clk 0:00:19]} 36. N3h4 {[%clk 0:00:01]}  Qf7 {[%clk 0:00:13]} 37. Ng6+ {[%clk 0:00:01]}  Nxg6 {[%clk 0:00:13]} 38. hxg6 {[%clk 0:00:02]}  Qxg6 {[%clk 0:00:14]} 39. Ng3 {[%clk 0:00:03]}  Bc2 {[%clk 0:00:11]} 40. Bf5 {[%clk 0:00:02]}  Bxf5 {[%clk 0:00:11]} 41. Nxf5 {[%clk 0:00:02]}  Qg5 {[%clk 0:00:09]} 42. Ng3 {[%clk 0:00:02]}  Qf4 {[%clk 0:00:09]} 43. Ne2 {[%clk 0:00:02]}  Qxf2+ {[%clk 0:00:08]} 44. Kh2 {[%clk 0:00:02]}  Qxe2 {[%clk 0:00:08]} 0-1


[Site "https://www.chess.com"]

[Event "Titled Tuesday Blitz July 20 2021"]
[White "Lagunow, Raphael"]
[Black "Megaranto, Susanto"]
[WhiteFideId "24652644"]
[BlackFideId "7101384"]
[WhiteElo "2462"]
[BlackElo "2738"]
[Result "1-0"]
[Round "02"]
[TimeControl "180+1"]
[Date "2021.07.21"]
[WhiteClock "0:00:02"]
[BlackClock "0:00:05"]

1. e4 {[%clk 0:03:00]}  c6 {[%clk 0:02:46]} 2. d4 {[%clk 0:02:57]}  d5 {[%clk 0:02:45]} 3. e5 {[%clk 0:02:58]}  Bf5 {[%clk 0:02:43]} 4. Nd2 {[%clk 0:02:57]}  e6 {[%clk 0:02:41]} 5. Nb3 {[%clk 0:02:57]}  Nd7 {[%clk 0:02:36]} 6. Nf3 {[%clk 0:02:56]}  Ne7 {[%clk 0:02:31]} 7. a4 {[%clk 0:02:53]}  h6 {[%clk 0:02:31]} 8. a5 {[%clk 0:02:53]}  a6 {[%clk 0:02:27]} 9. Be2 {[%clk 0:02:53]}  c5 {[%clk 0:02:20]} 10. dxc5 {[%clk 0:02:51]}  Nc6 {[%clk 0:02:10]} 11. Be3 {[%clk 0:02:26]}  Ndxe5 {[%clk 0:02:04]} 12. Nxe5 {[%clk 0:02:26]}  Nxe5 {[%clk 0:02:02]} 13. O-O {[%clk 0:02:26]}  Be7 {[%clk 0:01:59]} 14. Bd4 {[%clk 0:01:52]}  Bf6 {[%clk 0:01:49]} 15. f4 {[%clk 0:01:49]}  Nc6 {[%clk 0:01:46]} 16. c3 {[%clk 0:01:49]}  O-O {[%clk 0:01:38]} 17. Qd2 {[%clk 0:01:45]}  Bh7 {[%clk 0:01:27]} 18. Bxf6 {[%clk 0:01:28]}  Qxf6 {[%clk 0:01:23]} 19. Nd4 {[%clk 0:01:28]}  Qe7 {[%clk 0:01:11]} 20. b4 {[%clk 0:01:27]}  Be4 {[%clk 0:01:10]} 21. Bf3 {[%clk 0:01:23]}  f5 {[%clk 0:01:08]} 22. Rae1 {[%clk 0:01:16]}  Qf6 {[%clk 0:00:56]} 23. Rd1 {[%clk 0:01:11]}  Kh8 {[%clk 0:00:51]} 24. Bxe4 {[%clk 0:00:59]}  fxe4 {[%clk 0:00:44]} 25. f5 {[%clk 0:00:59]}  e5 {[%clk 0:00:20]} 26. Ne6 {[%clk 0:00:59]}  Rad8 {[%clk 0:00:18]} 27. Nxd8 {[%clk 0:00:57]}  Rxd8 {[%clk 0:00:17]} 28. Qe3 {[%clk 0:00:56]}  Kh7 {[%clk 0:00:15]} 29. Rd2 {[%clk 0:00:39]}  Qh4 {[%clk 0:00:14]} 30. Re1 {[%clk 0:00:24]}  Qf6 {[%clk 0:00:12]} 31. Red1 {[%clk 0:00:22]}  Qf7 {[%clk 0:00:08]} 32. c4 {[%clk 0:00:19]}  d4 {[%clk 0:00:07]} 33. Qxe4 {[%clk 0:00:20]}  Qxc4 {[%clk 0:00:07]} 34. f6+ {[%clk 0:00:19]}  g6 {[%clk 0:00:07]} 35. Rd3 {[%clk 0:00:15]}  Qf7 {[%clk 0:00:07]} 36. Rf3 {[%clk 0:00:09]}  Re8 {[%clk 0:00:08]} 37. Rdf1 {[%clk 0:00:06]}  Nxb4 {[%clk 0:00:07]} 38. Rh3 {[%clk 0:00:05]}  Nc6 {[%clk 0:00:06]} 39. Qh4 {[%clk 0:00:05]}  Qf8 {[%clk 0:00:06]} 40. Qe4 {[%clk 0:00:05]}  Re6 {[%clk 0:00:06]} 41. f7 {[%clk 0:00:04]}  Nd8 {[%clk 0:00:05]} 42. Rhf3 {[%clk 0:00:03]}  Re7 {[%clk 0:00:05]} 43. Rf6 {[%clk 0:00:02]} 1-0


[Site "https://www.chess.com"]

[Event "Titled Tuesday Blitz July 20 2021"]
[White "Locci, Damiano"]
[Black "Ozen, Bahadir"]
[WhiteFideId "819751"]
[BlackFideId "6337058"]
[WhiteElo "2413"]
[BlackElo "2503"]
[Result "1/2-1/2"]
[Round "02"]
[TimeControl "180+1"]
[Date "2021.07.21"]
[WhiteClock "0:00:25"]
[BlackClock "0:00:25"]

1. e4 {[%clk 0:03:00]}  c6 {[%clk 0:02:59]} 2. d4 {[%clk 0:03:00]}  d5 {[%clk 0:03:00]} 3. exd5 {[%clk 0:03:01]}  cxd5 {[%clk 0:03:00]} 4. Bd3 {[%clk 0:03:02]}  Nf6 {[%clk 0:02:58]} 5. Nf3 {[%clk 0:03:02]}  Bg4 {[%clk 0:02:58]} 6. c3 {[%clk 0:03:01]}  e6 {[%clk 0:02:48]} 7. Bf4 {[%clk 0:02:59]}  Nc6 {[%clk 0:02:01]} 8. O-O {[%clk 0:02:58]}  Bd6 {[%clk 0:02:00]} 9. Bxd6 {[%clk 0:02:58]}  Qxd6 {[%clk 0:02:00]} 10. Nbd2 {[%clk 0:02:58]}  O-O {[%clk 0:01:59]} 11. Qe1 {[%clk 0:02:59]}  Ne7 {[%clk 0:01:46]} 12. Ne5 {[%clk 0:02:57]}  Bf5 {[%clk 0:01:46]} 13. Qe2 {[%clk 0:02:48]}  Bxd3 {[%clk 0:01:40]} 14. Qxd3 {[%clk 0:02:49]}  Nd7 {[%clk 0:01:41]} 15. f4 {[%clk 0:02:49]}  f6 {[%clk 0:01:40]} 16. Nxd7 {[%clk 0:02:48]}  Qxd7 {[%clk 0:01:40]} 17. Rae1 {[%clk 0:02:48]}  Nf5 {[%clk 0:01:40]} 18. Re2 {[%clk 0:02:41]}  Nd6 {[%clk 0:01:35]} 19. Rfe1 {[%clk 0:02:37]}  Rfe8 {[%clk 0:01:35]} 20. Qh3 {[%clk 0:02:35]}  Nf5 {[%clk 0:01:31]} 21. Nf1 {[%clk 0:02:10]}  Re7 {[%clk 0:01:19]} 22. Ne3 {[%clk 0:01:57]}  Rae8 {[%clk 0:01:16]} 23. Nxf5 {[%clk 0:01:48]}  exf5 {[%clk 0:01:16]} 24. Qd3 {[%clk 0:01:49]}  Rxe2 {[%clk 0:01:12]} 25. Rxe2 {[%clk 0:01:50]}  Re4 {[%clk 0:01:13]} 26. g3 {[%clk 0:01:32]}  Qe8 {[%clk 0:01:12]} 27. Kf2 {[%clk 0:01:32]}  Qh5 {[%clk 0:01:12]} 28. Kf1 {[%clk 0:01:25]}  Qh3+ {[%clk 0:01:07]} 29. Kg1 {[%clk 0:01:23]}  Qg4 {[%clk 0:01:04]} 30. Kf1 {[%clk 0:01:21]}  Qh5 {[%clk 0:01:01]} 31. b3 {[%clk 0:01:14]}  b5 {[%clk 0:00:56]} 32. a4 {[%clk 0:00:47]}  a6 {[%clk 0:00:54]} 33. axb5 {[%clk 0:00:46]}  axb5 {[%clk 0:00:55]} 34. Rxe4 {[%clk 0:00:44]}  fxe4 {[%clk 0:00:54]} 35. Qxb5 {[%clk 0:00:25]}  Qd1+ {[%clk 0:00:34]} 36. Kf2 {[%clk 0:00:25]}  Qd2+ {[%clk 0:00:26]} 37. Kf1 {[%clk 0:00:25]}  Qd1+ {[%clk 0:00:26]} 38. Kf2 {[%clk 0:00:25]}  Qd2+ {[%clk 0:00:26]} 39. Kf1 {[%clk 0:00:25]}  Qd1+ {[%clk 0:00:25]} 1/2-1/2


[Site "https://www.chess.com"]

[Event "Titled Tuesday Blitz July 20 2021"]
[White "LuckSlayeer"]
[Black "Howell, David W L"]
[BlackFideId "410608"]
[WhiteElo "2535"]
[BlackElo "2643"]
[Result "0-1"]
[Round "02"]
[TimeControl "180+1"]
[Date "2021.07.20"]
[WhiteClock "0:00:01"]
[BlackClock "0:00:17"]

1. Nf3 {[%clk 0:03:00]}  Nc6 {[%clk 0:02:46]} 2. e4 {[%clk 0:02:57]}  e5 {[%clk 0:02:44]} 3. d4 {[%clk 0:02:57]}  exd4 {[%clk 0:02:43]} 4. Nxd4 {[%clk 0:02:58]}  Nf6 {[%clk 0:02:40]} 5. Nxc6 {[%clk 0:02:57]}  bxc6 {[%clk 0:02:40]} 6. e5 {[%clk 0:02:57]}  Qe7 {[%clk 0:02:39]} 7. Qe2 {[%clk 0:02:58]}  Nd5 {[%clk 0:02:39]} 8. h4 {[%clk 0:02:58]}  f6 {[%clk 0:02:30]} 9. c4 {[%clk 0:02:42]}  Nb6 {[%clk 0:02:27]} 10. exf6 {[%clk 0:02:39]}  Qxe2+ {[%clk 0:02:28]} 11. Bxe2 {[%clk 0:02:39]}  gxf6 {[%clk 0:02:29]} 12. b3 {[%clk 0:02:18]}  Bb4+ {[%clk 0:02:18]} 13. Kf1 {[%clk 0:02:11]}  d5 {[%clk 0:02:09]} 14. cxd5 {[%clk 0:02:01]}  cxd5 {[%clk 0:02:07]} 15. Bb2 {[%clk 0:02:02]}  Kf7 {[%clk 0:02:06]} 16. h5 {[%clk 0:01:37]}  a5 {[%clk 0:01:44]} 17. Rh4 {[%clk 0:01:24]}  Bd6 {[%clk 0:01:34]} 18. Nc3 {[%clk 0:01:09]}  c6 {[%clk 0:01:33]} 19. h6 {[%clk 0:00:32]}  Bf5 {[%clk 0:01:31]} 20. Rd1 {[%clk 0:00:20]}  Rhe8 {[%clk 0:01:22]} 21. Bh5+ {[%clk 0:00:13]}  Bg6 {[%clk 0:01:22]} 22. Bf3 {[%clk 0:00:13]}  Be5 {[%clk 0:01:18]} 23. Ba1 {[%clk 0:00:04]}  Red8 {[%clk 0:00:59]} 24. Ne2 {[%clk 0:00:02]}  a4 {[%clk 0:00:55]} 25. Bxe5 {[%clk 0:00:01]}  fxe5 {[%clk 0:00:56]} 26. b4 {[%clk 0:00:01]}  a3 {[%clk 0:00:50]} 27. Nc3 {[%clk 0:00:01]}  Ra7 {[%clk 0:00:24]} 28. Be2 {[%clk 0:00:01]}  Na4 {[%clk 0:00:17]} 0-1


[Site "https://www.chess.com"]